[Event "Early-Titled-Tuesday-Blitz-May-28-2024"]
[Site "Chess.com"]
[Date "2024.05.28"]
[Round "4"]
[White "milovichalex"]
[Black "martinmena"]
[Result "1/2-1/2"]
[WhiteElo "2397"]
[BlackElo "2131"]
[TimeControl "180+1"]
[EndTime "8:36:22 PDT"]
[Termination "Game drawn by repetition"]

1. e4 {[%clk 0:03:00.9]} 1... c6 {[%clk 0:02:59.8]} 2. Nc3 {[%clk 0:02:59.7]}
2... d5 {[%clk 0:03:00.7]} 3. exd5 {[%clk 0:03:00.3]} 3... cxd5 {[%clk
0:03:00.4]} 4. d4 {[%clk 0:03:01.1]} 4... Nf6 {[%clk 0:02:49.5]} 5. Bf4 {[%clk
0:03:01]} 5... a6 {[%clk 0:02:44.2]} 6. h3 {[%clk 0:02:58.6]} 6... Nc6 {[%clk
0:02:40.4]} 7. Nf3 {[%clk 0:02:57.9]} 7... g6 {[%clk 0:02:30]} 8. a3 {[%clk
0:02:51.9]} 8... Bf5 {[%clk 0:02:30.4]} 9. Bd3 {[%clk 0:02:43.9]} 9... Bxd3
{[%clk 0:02:26.1]} 10. Qxd3 {[%clk 0:02:44]} 10... Bg7 {[%clk 0:02:25.8]} 11.
O-O {[%clk 0:02:39]} 11... O-O {[%clk 0:02:17.8]} 12. Rfe1 {[%clk 0:02:39.3]}
12... e6 {[%clk 0:02:12.2]} 13. Ne5 {[%clk 0:02:35.5]} 13... Nxe5 {[%clk
0:02:11]} 14. Bxe5 {[%clk 0:02:35.7]} 14... b5 {[%clk 0:02:01.6]} 15. Ne2 {[%clk
0:02:32.3]} 15... Qb6 {[%clk 0:01:57.7]} 16. c3 {[%clk 0:02:32.2]} 16... Ne4
{[%clk 0:01:56.6]} 17. Bxg7 {[%clk 0:02:30.5]} 17... Kxg7 {[%clk 0:01:57.5]} 18.
Qe3 {[%clk 0:02:23.5]} 18... a5 {[%clk 0:01:54.3]} 19. f3 {[%clk 0:02:20.5]}
19... Nd6 {[%clk 0:01:53.4]} 20. Ng3 {[%clk 0:02:15.1]} 20... Nc4 {[%clk
0:01:47.6]} 21. Qg5 {[%clk 0:02:07.5]} 21... Qd8 {[%clk 0:01:45.7]} 22. Nh5+
{[%clk 0:01:55.1]} 22... Kh8 {[%clk 0:01:43.1]} 23. Nf6 {[%clk 0:01:55.3]} 23...
Kg7 {[%clk 0:01:33.1]} 24. Nh5+ {[%clk 0:01:53.3]} 24... Kh8 {[%clk 0:01:32.7]}
25. Nf6 {[%clk 0:01:42.9]} 25... Kg7 {[%clk 0:01:30.8]} 26. Nh5+ {[%clk
0:01:37.3]} 1/2-1/2

[Event "Early-Titled-Tuesday-Blitz-May-28-2024"]
[Site "Chess.com"]
[Date "2024.05.28"]
[Round "4"]
[White "youngKID"]
[Black "Muracle"]
[Result "1-0"]
[WhiteElo "2873"]
[BlackElo "2576"]
[TimeControl "180+1"]
[EndTime "8:36:51 PDT"]
[Termination "youngKID won by resignation"]

1. d4 {[%clk 0:03:00]} 1... d5 {[%clk 0:02:57.5]} 2. Nf3 {[%clk 0:02:59.7]} 2...
Nf6 {[%clk 0:02:57.6]} 3. c4 {[%clk 0:02:57.9]} 3... c6 {[%clk 0:02:57.7]} 4. g3
{[%clk 0:02:56]} 4... g6 {[%clk 0:02:57]} 5. Bg2 {[%clk 0:02:55.9]} 5... Bg7
{[%clk 0:02:57.6]} 6. O-O {[%clk 0:02:54.6]} 6... O-O {[%clk 0:02:58.1]} 7. b3
{[%clk 0:02:47.6]} 7... dxc4 {[%clk 0:02:53.6]} 8. bxc4 {[%clk 0:02:47.7]} 8...
c5 {[%clk 0:02:54.5]} 9. Bb2 {[%clk 0:02:47.5]} 9... Qb6 {[%clk 0:02:51.9]} 10.
Qc1 {[%clk 0:02:47.4]} 10... Ne4 {[%clk 0:02:27.6]} 11. Nbd2 {[%clk 0:02:17]}
11... Nxd2 {[%clk 0:02:01.8]} 12. Qxd2 {[%clk 0:02:16.4]} 12... Nc6 {[%clk
0:02:02.5]} 13. Rab1 {[%clk 0:01:59.2]} 13... Bf5 {[%clk 0:01:10.2]} 14. dxc5
{[%clk 0:01:57.9]} 14... Qxc5 {[%clk 0:00:58.1]} 15. Bxg7 {[%clk 0:01:57.3]}
15... Kxg7 {[%clk 0:00:52]} 16. Rxb7 {[%clk 0:01:50.4]} 16... Na5 {[%clk
0:00:46.1]} 17. Rb5 {[%clk 0:01:45.7]} 17... Nxc4 {[%clk 0:00:45.9]} 18. Qc3+
{[%clk 0:01:43.5]} 1-0

[Event "Early-Titled-Tuesday-Blitz-May-28-2024"]
[Site "Chess.com"]
[Date "2024.05.28"]
[Round "4"]
[White "FollowRivers"]
[Black "remyrushbrooke"]
[Result "1-0"]
[WhiteElo "2469"]
[BlackElo "2270"]
[TimeControl "180+1"]
[EndTime "8:36:54 PDT"]
[Termination "FollowRivers won by resignation"]

1. e4 {[%clk 0:03:00.9]} 1... g6 {[%clk 0:03:00.4]} 2. d4 {[%clk 0:03:00.3]}
2... Bg7 {[%clk 0:03:00.1]} 3. Nc3 {[%clk 0:03:00.9]} 3... d6 {[%clk 0:03:00.1]}
4. Be3 {[%clk 0:03:00.9]} 4... a6 {[%clk 0:03:00.5]} 5. f3 {[%clk 0:02:58.2]}
5... b5 {[%clk 0:03:00.8]} 6. h4 {[%clk 0:02:58.1]} 6... h6 {[%clk 0:02:58.6]}
7. Qd2 {[%clk 0:02:57.4]} 7... Bb7 {[%clk 0:02:58.4]} 8. Nge2 {[%clk 0:02:48.5]}
8... Nd7 {[%clk 0:02:54.5]} 9. h5 {[%clk 0:02:46.7]} 9... g5 {[%clk 0:02:54.9]}
10. d5 {[%clk 0:02:47.1]} 10... c5 {[%clk 0:02:43.9]} 11. dxc6 {[%clk
0:02:44.3]} 11... Bxc6 {[%clk 0:02:43.3]} 12. Nd4 {[%clk 0:02:45]} 12... Bxd4
{[%clk 0:02:33.3]} 13. Bxd4 {[%clk 0:02:43.1]} 13... e5 {[%clk 0:02:30.1]} 14.
Be3 {[%clk 0:02:41.4]} 14... Qc7 {[%clk 0:02:17.9]} 15. O-O-O {[%clk 0:02:38.6]}
15... Ke7 {[%clk 0:02:10.2]} 16. a4 {[%clk 0:01:46.4]} 16... b4 {[%clk 0:01:53]}
17. Nd5+ {[%clk 0:01:44.9]} 17... Bxd5 {[%clk 0:01:53.2]} 18. Qxd5 {[%clk
0:01:45.8]} 18... Ngf6 {[%clk 0:01:51.4]} 19. Qb3 {[%clk 0:01:33.1]} 19... Rhc8
{[%clk 0:01:42.8]} 20. Rd2 {[%clk 0:01:24.3]} 20... Nc5 {[%clk 0:01:40.9]} 21.
Bxc5 {[%clk 0:01:16.9]} 21... Qxc5 {[%clk 0:01:40.3]} 22. Be2 {[%clk 0:01:13.5]}
22... Rc7 {[%clk 0:01:33.7]} 23. Rhd1 {[%clk 0:01:11.7]} 23... Rac8 {[%clk
0:01:29.1]} 24. Bxa6 {[%clk 0:01:06.6]} 24... Qxc2+ {[%clk 0:01:27.7]} 1-0

[Event "Early-Titled-Tuesday-Blitz-May-28-2024"]
[Site "Chess.com"]
[Date "2024.05.28"]
[Round "4"]
[White "nikitakhoroshev"]
[Black "luca_va99"]
[Result "1-0"]
[WhiteElo "2477"]
[BlackElo "2227"]
[TimeControl "180+1"]
[EndTime "8:37:02 PDT"]
[Termination "nikitakhoroshev won by resignation"]

1. e4 {[%clk 0:03:00.9]} 1... d5 {[%clk 0:02:58.2]} 2. exd5 {[%clk 0:03:00.2]}
2... Qxd5 {[%clk 0:02:59.1]} 3. Nc3 {[%clk 0:02:59.6]} 3... Qe5+ {[%clk
0:02:59.6]} 4. Be2 {[%clk 0:02:58.2]} 4... Bg4 {[%clk 0:02:59.6]} 5. d4 {[%clk
0:02:54.7]} 5... Bxe2 {[%clk 0:02:59.9]} 6. Ngxe2 {[%clk 0:02:54.7]} 6... Qa5
{[%clk 0:03:00.2]} 7. O-O {[%clk 0:02:54.4]} 7... Nf6 {[%clk 0:03:00.7]} 8. Bd2
{[%clk 0:02:53.7]} 8... Nc6 {[%clk 0:02:49.7]} 9. a4 {[%clk 0:02:43.9]} 9... Qf5
{[%clk 0:02:45.5]} 10. Ng3 {[%clk 0:02:41.3]} 10... Qd7 {[%clk 0:02:44.6]} 11.
Be3 {[%clk 0:02:35.2]} 11... O-O-O {[%clk 0:02:44.2]} 12. Qf3 {[%clk 0:02:17.7]}
12... Nxd4 {[%clk 0:02:21.9]} 13. Bxd4 {[%clk 0:02:17.3]} 13... Qxd4 {[%clk
0:02:22.8]} 14. Rad1 {[%clk 0:02:17.1]} 14... Qg4 {[%clk 0:02:20.5]} 15. Rxd8+
{[%clk 0:02:15.8]} 15... Kxd8 {[%clk 0:02:21.4]} 16. Qxb7 {[%clk 0:02:15.6]}
16... e5 {[%clk 0:02:03]} 17. Rd1+ {[%clk 0:02:11.9]} 17... Bd6 {[%clk
0:02:02.8]} 18. Qb8+ {[%clk 0:02:09.6]} 18... Qc8 {[%clk 0:02:01.9]} 19. Qxa7
{[%clk 0:02:05.8]} 19... Ke7 {[%clk 0:01:53.8]} 20. Nb5 {[%clk 0:02:02.6]} 20...
Rd8 {[%clk 0:01:46.7]} 21. Qe3 {[%clk 0:01:50.1]} 21... Kf8 {[%clk 0:01:33.6]}
22. h3 {[%clk 0:01:41.4]} 22... Rd7 {[%clk 0:01:12.8]} 23. Nf5 {[%clk
0:01:37.7]} 23... Bc5 {[%clk 0:01:12.2]} 24. Qxc5+ {[%clk 0:01:34.5]} 24... Kg8
{[%clk 0:01:08.8]} 25. Ne7+ {[%clk 0:01:28.5]} 25... Kh8 {[%clk 0:01:03.4]} 26.
Nxc8 {[%clk 0:01:26.2]} 26... Rxd1+ {[%clk 0:01:03.2]} 27. Kh2 {[%clk
0:01:27.1]} 1-0

[Event "Early-Titled-Tuesday-Blitz-May-28-2024"]
[Site "Chess.com"]
[Date "2024.05.28"]
[Round "4"]
[White "JanMur7"]
[Black "Ramosha"]
[Result "0-1"]
[WhiteElo "2272"]
[BlackElo "2553"]
[TimeControl "180+1"]
[EndTime "8:37:04 PDT"]
[Termination "Ramosha won by resignation"]

1. c4 {[%clk 0:03:00.9]} 1... c6 {[%clk 0:02:58.8]} 2. Nc3 {[%clk 0:03:00.5]}
2... d5 {[%clk 0:02:59.7]} 3. d4 {[%clk 0:03:00.3]} 3... dxc4 {[%clk 0:03:00.2]}
4. a4 {[%clk 0:02:59.2]} 4... Nf6 {[%clk 0:02:57.1]} 5. Nf3 {[%clk 0:02:52.6]}
5... h6 {[%clk 0:02:50.9]} 6. Ne5 {[%clk 0:02:49.3]} 6... c5 {[%clk 0:02:47]} 7.
e3 {[%clk 0:02:43.6]} 7... cxd4 {[%clk 0:02:47.1]} 8. exd4 {[%clk 0:02:44.5]}
8... Nc6 {[%clk 0:02:46.8]} 9. Nxc6 {[%clk 0:02:44]} 9... bxc6 {[%clk
0:02:47.7]} 10. Bxc4 {[%clk 0:02:44.1]} 10... e6 {[%clk 0:02:48.1]} 11. Be3
{[%clk 0:02:41.5]} 11... Be7 {[%clk 0:02:47.8]} 12. O-O {[%clk 0:02:38.8]} 12...
Rb8 {[%clk 0:02:47.4]} 13. Qf3 {[%clk 0:02:37.8]} 13... O-O {[%clk 0:02:45.1]}
14. Qxc6 {[%clk 0:01:29.6]} 14... Bb7 {[%clk 0:02:43.5]} 15. Qb5 {[%clk
0:01:20]} 15... Bxg2 {[%clk 0:02:43]} 16. Kxg2 {[%clk 0:01:18]} 16... Rxb5
{[%clk 0:02:42.6]} 17. axb5 {[%clk 0:01:17.8]} 17... Qb8 {[%clk 0:02:42.1]} 18.
h3 {[%clk 0:01:13]} 18... Rc8 {[%clk 0:02:41.8]} 19. b3 {[%clk 0:01:12.1]} 19...
Bd8 {[%clk 0:02:41.5]} 20. Ra6 {[%clk 0:01:05.5]} 20... Bb6 {[%clk 0:02:41.2]}
21. Na4 {[%clk 0:01:04.9]} 21... Qb7+ {[%clk 0:02:37.7]} 22. f3 {[%clk
0:00:50.9]} 22... Nd5 {[%clk 0:02:33.5]} 23. Bxd5 {[%clk 0:00:46.1]} 23... Qxd5
{[%clk 0:02:34.4]} 24. Nxb6 {[%clk 0:00:46]} 24... axb6 {[%clk 0:02:34.3]} 25.
Rxb6 {[%clk 0:00:46.1]} 25... Qxb3 {[%clk 0:02:34.1]} 26. Bf2 {[%clk 0:00:45.1]}
26... Rc3 {[%clk 0:02:32.3]} 27. Be1 {[%clk 0:00:33.7]} 27... Rd3 {[%clk
0:02:30.2]} 28. Rb8+ {[%clk 0:00:32.2]} 28... Kh7 {[%clk 0:02:30]} 29. b6 {[%clk
0:00:30.6]} 29... Rxd4 {[%clk 0:02:29.9]} 30. Rf2 {[%clk 0:00:21.7]} 30... Rd5
{[%clk 0:02:27.8]} 31. Bd2 {[%clk 0:00:20.4]} 31... Rb5 {[%clk 0:02:26.4]} 32.
Be3 {[%clk 0:00:17.6]} 32... Qxe3 {[%clk 0:02:25.4]} 0-1

[Event "Early-Titled-Tuesday-Blitz-May-28-2024"]
[Site "Chess.com"]
[Date "2024.05.28"]
[Round "4"]
[White "Iball95"]
[Black "NiranjanNavalgund"]
[Result "0-1"]
[WhiteElo "2847"]
[BlackElo "2475"]
[TimeControl "180+1"]
[EndTime "8:37:10 PDT"]
[Termination "NiranjanNavalgund won by resignation"]

1. e4 {[%clk 0:03:00.9]} 1... e5 {[%clk 0:02:59.9]} 2. Nf3 {[%clk 0:03:00.5]}
2... Nc6 {[%clk 0:03:00.3]} 3. Nc3 {[%clk 0:03:01.1]} 3... Nf6 {[%clk
0:03:00.4]} 4. Bb5 {[%clk 0:03:01.7]} 4... Bb4 {[%clk 0:02:59.8]} 5. Nd5 {[%clk
0:03:01.3]} 5... Bc5 {[%clk 0:02:56]} 6. O-O {[%clk 0:03:00.6]} 6... O-O {[%clk
0:02:53.5]} 7. d4 {[%clk 0:02:59.6]} 7... Nxd4 {[%clk 0:02:44.4]} 8. Nxd4 {[%clk
0:02:52.5]} 8... Bxd4 {[%clk 0:02:44.1]} 9. Bg5 {[%clk 0:02:50]} 9... c6 {[%clk
0:02:44]} 10. Nxf6+ {[%clk 0:02:50.3]} 10... gxf6 {[%clk 0:02:44.4]} 11. Bh6
{[%clk 0:02:50.8]} 11... Kh8 {[%clk 0:02:42.8]} 12. Bxf8 {[%clk 0:02:44.3]}
12... Qxf8 {[%clk 0:02:43.7]} 13. c3 {[%clk 0:02:44.1]} 13... Bb6 {[%clk
0:02:43]} 14. Bc4 {[%clk 0:02:41.3]} 14... d6 {[%clk 0:02:42.7]} 15. Qf3 {[%clk
0:02:34.8]} 15... Qe7 {[%clk 0:02:40.2]} 16. Rad1 {[%clk 0:02:30.2]} 16... f5
{[%clk 0:02:39.7]} 17. exf5 {[%clk 0:02:23.9]} 17... d5 {[%clk 0:02:40.1]} 18.
Bb3 {[%clk 0:02:21.7]} 18... Qf6 {[%clk 0:02:34.2]} 19. c4 {[%clk 0:02:01.9]}
19... e4 {[%clk 0:02:31.9]} 20. Qf4 {[%clk 0:01:59.3]} 20... Bxf5 {[%clk
0:02:27.9]} 21. cxd5 {[%clk 0:01:57.6]} 21... Rg8 {[%clk 0:02:28.5]} 22. dxc6
{[%clk 0:01:28.3]} 22... Rxg2+ {[%clk 0:02:13]} 23. Kxg2 {[%clk 0:01:15.3]}
23... Bh3+ {[%clk 0:02:12.7]} 24. Kg3 {[%clk 0:01:15.9]} 24... Bc7 {[%clk
0:02:12]} 25. Rd8+ {[%clk 0:00:52.2]} 25... Qxd8 {[%clk 0:02:08.7]} 26. Qxc7
{[%clk 0:00:52.4]} 26... Qxc7+ {[%clk 0:02:09.6]} 27. Kxh3 {[%clk 0:00:53]}
27... Qxc6 {[%clk 0:02:09.9]} 28. Rd1 {[%clk 0:00:47]} 28... Qh6+ {[%clk
0:02:09.5]} 29. Kg2 {[%clk 0:00:44.8]} 29... Qg5+ {[%clk 0:02:10]} 30. Kf1
{[%clk 0:00:44.9]} 30... Qf5 {[%clk 0:02:07.4]} 31. Rd8+ {[%clk 0:00:42.2]}
31... Kg7 {[%clk 0:02:07.1]} 32. Re8 {[%clk 0:00:42.8]} 32... Qb5+ {[%clk
0:02:05.4]} 33. Bc4 {[%clk 0:00:41.1]} 33... Qxe8 {[%clk 0:02:05.2]} 34. Bxf7
{[%clk 0:00:42]} 34... Qxf7 {[%clk 0:02:04.8]} 0-1

[Event "Early-Titled-Tuesday-Blitz-May-28-2024"]
[Site "Chess.com"]
[Date "2024.05.28"]
[Round "4"]
[White "baki83"]
[Black "WolfBaoBaoLang"]
[Result "1-0"]
[WhiteElo "2904"]
[BlackElo "2073"]
[TimeControl "180+1"]
[EndTime "8:37:16 PDT"]
[Termination "baki83 won by resignation"]

1. e4 {[%clk 0:03:00.9]} 1... c5 {[%clk 0:02:46]} 2. Nf3 {[%clk 0:03:00.4]} 2...
e6 {[%clk 0:02:45.6]} 3. c3 {[%clk 0:03:00.3]} 3... Nf6 {[%clk 0:02:45.1]} 4. e5
{[%clk 0:02:59.9]} 4... Nd5 {[%clk 0:02:16.5]} 5. a3 {[%clk 0:02:59.4]} 5... Nc6
{[%clk 0:02:00.1]} 6. d4 {[%clk 0:02:58.8]} 6... cxd4 {[%clk 0:01:59.9]} 7. cxd4
{[%clk 0:02:59.2]} 7... b6 {[%clk 0:01:56]} 8. Bc4 {[%clk 0:02:57.6]} 8... Nce7
{[%clk 0:01:55.5]} 9. O-O {[%clk 0:02:50.1]} 9... Bb7 {[%clk 0:01:55.7]} 10.
Nbd2 {[%clk 0:02:40.4]} 10... Rc8 {[%clk 0:01:55.5]} 11. Bd3 {[%clk 0:02:40.5]}
11... Nf4 {[%clk 0:01:54.6]} 12. Be4 {[%clk 0:02:40.6]} 12... Ned5 {[%clk
0:01:52.5]} 13. g3 {[%clk 0:02:36.3]} 13... Ng6 {[%clk 0:01:26.4]} 14. h4 {[%clk
0:02:32.9]} 14... h5 {[%clk 0:01:13.1]} 15. Re1 {[%clk 0:02:33.4]} 15... d6
{[%clk 0:01:12.1]} 16. Ng5 {[%clk 0:02:23.9]} 16... dxe5 {[%clk 0:00:53.5]} 17.
Nxe6 {[%clk 0:02:17.4]} 17... Qf6 {[%clk 0:00:50.3]} 18. Nxf8 {[%clk 0:01:46.8]}
18... Kxf8 {[%clk 0:00:36.3]} 19. Nf3 {[%clk 0:01:42.1]} 19... exd4 {[%clk
0:00:34.5]} 20. Bg5 {[%clk 0:01:42.6]} 20... Qd6 {[%clk 0:00:32.2]} 21. Qxd4
{[%clk 0:01:43.1]} 21... Nge7 {[%clk 0:00:29.1]} 22. Bxe7+ {[%clk 0:01:39.2]}
22... Qxe7 {[%clk 0:00:29.4]} 23. Bxd5 {[%clk 0:01:39.1]} 23... Qxe1+ {[%clk
0:00:29.3]} 1-0

[Event "Early-Titled-Tuesday-Blitz-May-28-2024"]
[Site "Chess.com"]
[Date "2024.05.28"]
[Round "4"]
[White "juancruzarias"]
[Black "dropstoneDP"]
[Result "1/2-1/2"]
[WhiteElo "2679"]
[BlackElo "2970"]
[TimeControl "180+1"]
[EndTime "8:37:17 PDT"]
[Termination "Game drawn by agreement"]

1. d4 {[%clk 0:03:00.9]} 1... d5 {[%clk 0:02:59.7]} 2. c4 {[%clk 0:03:00.5]}
2... dxc4 {[%clk 0:03:00.6]} 3. e3 {[%clk 0:03:00.3]} 3... Nf6 {[%clk
0:03:00.8]} 4. Bxc4 {[%clk 0:03:00.2]} 4... e6 {[%clk 0:03:01.4]} 5. Nf3 {[%clk
0:02:59.9]} 5... c5 {[%clk 0:03:01.9]} 6. O-O {[%clk 0:02:59.2]} 6... a6 {[%clk
0:03:02.5]} 7. a4 {[%clk 0:02:59]} 7... cxd4 {[%clk 0:03:01.9]} 8. exd4 {[%clk
0:02:56.3]} 8... Nc6 {[%clk 0:03:02.5]} 9. Nc3 {[%clk 0:02:56.7]} 9... Be7
{[%clk 0:03:02.7]} 10. Re1 {[%clk 0:02:56]} 10... O-O {[%clk 0:03:03]} 11. Bg5
{[%clk 0:02:54.5]} 11... h6 {[%clk 0:03:02.5]} 12. Bh4 {[%clk 0:02:53.6]} 12...
Nh5 {[%clk 0:03:02.9]} 13. Bxe7 {[%clk 0:02:48.6]} 13... Nxe7 {[%clk 0:03:03.8]}
14. d5 {[%clk 0:02:47.7]} 14... exd5 {[%clk 0:03:03.8]} 15. Nxd5 {[%clk
0:02:47.6]} 15... Nxd5 {[%clk 0:03:04.4]} 16. Qxd5 {[%clk 0:02:43.8]} 16... Qxd5
{[%clk 0:03:02.6]} 17. Bxd5 {[%clk 0:02:44.7]} 17... Nf4 {[%clk 0:02:59.7]} 18.
Be4 {[%clk 0:02:26.9]} 18... Rb8 {[%clk 0:02:58.3]} 19. Rac1 {[%clk 0:02:18.3]}
19... Bd7 {[%clk 0:02:57.8]} 20. a5 {[%clk 0:02:03.8]} 20... b6 {[%clk
0:02:55.2]} 21. Rc7 {[%clk 0:02:02.9]} 21... Bb5 {[%clk 0:02:55.1]} 22. axb6
{[%clk 0:01:55.3]} 22... Rxb6 {[%clk 0:02:56]} 23. g3 {[%clk 0:01:36.8]} 23...
Ne6 {[%clk 0:02:51.8]} 24. Ra7 {[%clk 0:01:34]} 24... Bc6 {[%clk 0:02:42.7]} 25.
Bxc6 {[%clk 0:01:31.4]} 25... Rxc6 {[%clk 0:02:43.6]} 26. Ne5 {[%clk 0:01:31.4]}
26... Rc2 {[%clk 0:02:43.1]} 27. Rxa6 {[%clk 0:01:27.4]} 27... Rxb2 {[%clk
0:02:41.8]} 28. Kg2 {[%clk 0:01:12]} 28... Nc7 {[%clk 0:01:49.9]} 29. Ra7 {[%clk
0:01:10.5]} 29... Nd5 {[%clk 0:01:46.3]} 30. Nc4 {[%clk 0:00:55.4]} 30... Rc2
{[%clk 0:01:43.6]} 31. Ne3 {[%clk 0:00:53.5]} 31... Nxe3+ {[%clk 0:01:43.4]} 32.
Rxe3 {[%clk 0:00:54.4]} 32... Rc6 {[%clk 0:01:44]} 33. Rf3 {[%clk 0:00:53]}
33... Rf6 {[%clk 0:01:44.5]} 34. Rxf6 {[%clk 0:00:52.5]} 34... gxf6 {[%clk
0:01:45.4]} 1/2-1/2

[Event "Early-Titled-Tuesday-Blitz-May-28-2024"]
[Site "Chess.com"]
[Date "2024.05.28"]
[Round "4"]
[White "alexrustemov"]
[Black "Sondremelaa"]
[Result "1-0"]
[WhiteElo "2825"]
[BlackElo "2575"]
[TimeControl "180+1"]
[EndTime "8:37:19 PDT"]
[Termination "alexrustemov won by resignation"]

1. d4 {[%clk 0:03:00.9]} 1... d5 {[%clk 0:02:59]} 2. c4 {[%clk 0:03:01]} 2... c6
{[%clk 0:02:58.9]} 3. Nc3 {[%clk 0:03:00.6]} 3... Nf6 {[%clk 0:02:59]} 4. e3
{[%clk 0:03:01]} 4... e6 {[%clk 0:02:57.7]} 5. Nf3 {[%clk 0:03:01.2]} 5... Nbd7
{[%clk 0:02:55.9]} 6. Qc2 {[%clk 0:03:01.6]} 6... Bd6 {[%clk 0:02:55]} 7. Bd2
{[%clk 0:03:02.2]} 7... O-O {[%clk 0:02:52.4]} 8. O-O-O {[%clk 0:03:02.7]} 8...
dxc4 {[%clk 0:02:45.2]} 9. Bxc4 {[%clk 0:03:03.6]} 9... b5 {[%clk 0:02:44.7]}
10. Bd3 {[%clk 0:03:04.1]} 10... Bb7 {[%clk 0:02:43.8]} 11. e4 {[%clk
0:03:04.7]} 11... e5 {[%clk 0:02:39.1]} 12. dxe5 {[%clk 0:03:05.1]} 12... Nxe5
{[%clk 0:02:38.7]} 13. Nxe5 {[%clk 0:03:05.6]} 13... Bxe5 {[%clk 0:02:38.9]} 14.
f4 {[%clk 0:03:05.9]} 14... Bd4 {[%clk 0:01:59]} 15. e5 {[%clk 0:02:56.3]} 15...
Ng4 {[%clk 0:01:55.4]} 16. Bxh7+ {[%clk 0:02:55]} 16... Kh8 {[%clk 0:01:55.3]}
17. Ne2 {[%clk 0:02:28.2]} 17... Nf2 {[%clk 0:01:34.9]} 18. Bc3 {[%clk
0:02:26.3]} 18... Nxd1 {[%clk 0:01:25.8]} 19. Rxd1 {[%clk 0:02:24.6]} 19... Be3+
{[%clk 0:01:25.5]} 20. Kb1 {[%clk 0:02:24.1]} 20... Qh4 {[%clk 0:01:22.6]} 21.
Be4 {[%clk 0:02:21.8]} 21... Rad8 {[%clk 0:01:18.1]} 22. Rf1 {[%clk 0:02:14.1]}
22... Qxh2 {[%clk 0:00:17.5]} 23. g3 {[%clk 0:02:09.2]} 23... Rd2 {[%clk
0:00:08.5]} 24. Bxd2 {[%clk 0:02:04]} 24... Qxe2 {[%clk 0:00:08.7]} 25. Rh1+
{[%clk 0:02:04]} 25... Kg8 {[%clk 0:00:08.7]} 26. Bh7+ {[%clk 0:02:03.6]} 26...
Kh8 {[%clk 0:00:09.3]} 27. Bd3+ {[%clk 0:02:04.2]} 1-0

[Event "Early-Titled-Tuesday-Blitz-May-28-2024"]
[Site "Chess.com"]
[Date "2024.05.28"]
[Round "4"]
[White "Chesstrainer1"]
[Black "zozik"]
[Result "1-0"]
[WhiteElo "2510"]
[BlackElo "2331"]
[TimeControl "180+1"]
[EndTime "8:37:29 PDT"]
[Termination "Chesstrainer1 won by checkmate"]

1. e4 {[%clk 0:02:53.2]} 1... e6 {[%clk 0:01:44.3]} 2. d4 {[%clk 0:02:51.3]}
2... d5 {[%clk 0:01:43.1]} 3. Nd2 {[%clk 0:02:51.9]} 3... c5 {[%clk 0:01:42.6]}
4. Ngf3 {[%clk 0:02:51.1]} 4... cxd4 {[%clk 0:01:37.6]} 5. Nxd4 {[%clk 0:02:49]}
5... Nc6 {[%clk 0:01:38.1]} 6. Bb5 {[%clk 0:02:48.1]} 6... Bd7 {[%clk
0:01:36.3]} 7. Nxc6 {[%clk 0:02:45.4]} 7... bxc6 {[%clk 0:01:36.6]} 8. Bd3
{[%clk 0:02:44.9]} 8... Qc7 {[%clk 0:01:33]} 9. Qe2 {[%clk 0:02:38.4]} 9... Bd6
{[%clk 0:01:32.3]} 10. Nf3 {[%clk 0:02:33]} 10... Ne7 {[%clk 0:01:29.1]} 11. O-O
{[%clk 0:02:19]} 11... O-O {[%clk 0:01:28.7]} 12. e5 {[%clk 0:02:18.6]} 12...
Bc5 {[%clk 0:01:26.3]} 13. Bxh7+ {[%clk 0:02:17.1]} 13... Kxh7 {[%clk
0:01:24.2]} 14. Ng5+ {[%clk 0:02:17.7]} 14... Kg6 {[%clk 0:01:13.7]} 15. Qg4
{[%clk 0:02:17.5]} 15... f5 {[%clk 0:00:49.8]} 16. Qg3 {[%clk 0:02:14.2]} 16...
Qb6 {[%clk 0:00:28.3]} 17. h4 {[%clk 0:01:34.2]} 17... Rh8 {[%clk 0:00:23.1]}
18. Nxe6+ {[%clk 0:01:24.2]} 18... Kf7 {[%clk 0:00:22.5]} 19. Qxg7+ {[%clk
0:01:24.2]} 19... Kxe6 {[%clk 0:00:22.4]} 20. Qf6# {[%clk 0:01:24.6]} 1-0

[Event "Early-Titled-Tuesday-Blitz-May-28-2024"]
[Site "Chess.com"]
[Date "2024.05.28"]
[Round "4"]
[White "GoltsevDmitry2000"]
[Black "Semetey"]
[Result "1-0"]
[WhiteElo "2756"]
[BlackElo "2546"]
[TimeControl "180+1"]
[EndTime "8:37:30 PDT"]
[Termination "GoltsevDmitry2000 won by checkmate"]

1. e4 {[%clk 0:02:59.9]} 1... Nc6 {[%clk 0:02:57.3]} 2. Nf3 {[%clk 0:02:59.3]}
2... Nf6 {[%clk 0:02:52.4]} 3. e5 {[%clk 0:02:59.2]} 3... Nd5 {[%clk 0:02:52.3]}
4. c4 {[%clk 0:02:58.9]} 4... Nb6 {[%clk 0:02:52.4]} 5. d4 {[%clk 0:02:59.5]}
5... d6 {[%clk 0:02:49.8]} 6. exd6 {[%clk 0:02:59.7]} 6... exd6 {[%clk
0:02:47.6]} 7. Nc3 {[%clk 0:03:00.6]} 7... Be7 {[%clk 0:02:47]} 8. Bd3 {[%clk
0:03:01]} 8... O-O {[%clk 0:02:46.4]} 9. h3 {[%clk 0:03:00.6]} 9... Bf6 {[%clk
0:02:34.1]} 10. Be3 {[%clk 0:02:58.4]} 10... Re8 {[%clk 0:02:32.3]} 11. O-O
{[%clk 0:02:58.3]} 11... d5 {[%clk 0:02:27.7]} 12. c5 {[%clk 0:02:56.3]} 12...
Nc4 {[%clk 0:02:27.9]} 13. Bxc4 {[%clk 0:02:56.3]} 13... dxc4 {[%clk 0:02:27.6]}
14. Qa4 {[%clk 0:02:57.2]} 14... Be6 {[%clk 0:02:13.2]} 15. Rad1 {[%clk
0:02:44.2]} 15... Bd5 {[%clk 0:02:13]} 16. Nxd5 {[%clk 0:02:41.5]} 16... Qxd5
{[%clk 0:02:13.9]} 17. Rc1 {[%clk 0:02:36.4]} 17... Bxd4 {[%clk 0:01:24.2]} 18.
Rfd1 {[%clk 0:02:24.4]} 18... Rxe3 {[%clk 0:01:23]} 19. fxe3 {[%clk 0:02:23.6]}
19... Bxe3+ {[%clk 0:01:22.4]} 20. Kh1 {[%clk 0:02:23.9]} 20... Qxc5 {[%clk
0:00:58.7]} 21. Qxc4 {[%clk 0:02:21]} 21... Qh5 {[%clk 0:00:53.7]} 22. Rc3
{[%clk 0:02:19.7]} 22... Bf4 {[%clk 0:00:53.7]} 23. Qxf4 {[%clk 0:02:18.9]}
23... h6 {[%clk 0:00:52.5]} 24. Qxc7 {[%clk 0:02:17.3]} 24... Qb5 {[%clk
0:00:50.9]} 25. Rb3 {[%clk 0:02:16.4]} 25... Qe2 {[%clk 0:00:48.8]} 26. Re1
{[%clk 0:02:16.8]} 26... Qf2 {[%clk 0:00:45.7]} 27. Qxb7 {[%clk 0:02:16.6]}
27... Rf8 {[%clk 0:00:42.5]} 28. Qxc6 {[%clk 0:02:16.6]} 28... Qg3 {[%clk
0:00:41.1]} 29. Qe4 {[%clk 0:02:14.2]} 29... g6 {[%clk 0:00:34.5]} 30. Qe5
{[%clk 0:02:14.2]} 30... Qf2 {[%clk 0:00:33.3]} 31. Rb8 {[%clk 0:02:14]} 31...
Rxb8 {[%clk 0:00:31.7]} 32. Qxb8+ {[%clk 0:02:14.9]} 32... Kh7 {[%clk
0:00:31.9]} 33. Re8 {[%clk 0:02:12.4]} 33... Qf1+ {[%clk 0:00:30.2]} 34. Kh2
{[%clk 0:02:13]} 34... Qc4 {[%clk 0:00:28.8]} 35. Rh8+ {[%clk 0:02:10.3]} 35...
Kg7 {[%clk 0:00:27.9]} 36. Qe5+ {[%clk 0:02:11.2]} 36... f6 {[%clk 0:00:26.9]}
37. Qe7+ {[%clk 0:02:12.1]} 37... Qf7 {[%clk 0:00:26.4]} 38. Rh7+ {[%clk
0:02:12]} 38... Kxh7 {[%clk 0:00:26.2]} 39. Qxf7+ {[%clk 0:02:12.6]} 39... Kh8
{[%clk 0:00:26.3]} 40. Nh4 {[%clk 0:02:11.7]} 40... a5 {[%clk 0:00:21.7]} 41.
Nxg6# {[%clk 0:02:12.6]} 1-0